fUST/lending_fUST_20260420
["ID","MTS","AMOUNT","RATE_DAILY","PERIOD"]
[420880085,1776695442563,-4172.87,0.00013698,2]
[420880086,1776695442573,-612.91,0.00013698,2]
[420880087,1776695442584,-1023.06,0.00013698,2]
[420880088,1776695442595,-500.0,0.00013698,2]
[420880089,1776695442604,-500.0,0.00013698,2]
[420880090,1776695442614,-500.0,0.00013698,2]
[420880091,1776695442624,-1013.55,0.00013698,2]
[420880092,1776695442634,-5846.08,0.00013698,2]
[420880093,1776695442645,-500.0,0.00013698,2]
[420880094,1776695442655,-3991.94,0.00013698,2]
[420880095,1776695442665,-500.0,0.00013698,2]
[420880096,1776695442675,-1418.61,0.00013698,2]
[420880098,1776695442687,-1958.74,0.00013698,2]
[420880099,1776695442697,-10616.86,0.00013698,2]
[420880100,1776695442707,-519.09,0.00013698,2]
[420880101,1776695442718,-9111.11,0.00013698,2]
[420880102,1776695442728,-500.0,0.00013698,2]
[420880104,1776695442738,-500.0,0.00013698,2]
[420880106,1776695442747,-38262.62,0.00013698,2]
[420880107,1776695442758,-222.308018,0.00013699,2]
[420880109,1776695442768,-242.829035,0.00013699,2]
[420880111,1776695442778,-242.829035,0.00013699,2]
[420880112,1776695442788,-242.829035,0.00013699,2]
[420880113,1776695442797,-242.829035,0.00013699,2]
[420880114,1776695442807,-242.829035,0.00013699,2]
[420880115,1776695442817,-242.829035,0.00013699,2]
[420880116,1776695442827,-242.829035,0.00013699,2]
[420880117,1776695442836,-242.829035,0.00013699,2]
[420880118,1776695442846,-242.829035,0.00013699,2]
[420880119,1776695442856,-242.829035,0.00013699,2]
[420880120,1776695442866,-242.829035,0.00013699,2]
[420880121,1776695442876,-242.829035,0.00013699,2]
[420880122,1776695442885,-242.829035,0.00013699,2]
[420880123,1776695442895,-242.829035,0.00013699,2]
[420880124,1776695442904,-242.829035,0.00013699,2]
[420880125,1776695442914,-242.829035,0.00013699,2]
[420880126,1776695442924,-242.829035,0.00013699,2]
[420880127,1776695442935,-242.829035,0.00013699,2]
[420880128,1776695442945,-242.829035,0.00013699,2]
[420880129,1776695442955,-242.829028,0.00013699,2]
[420880130,1776695442965,-1190.0,0.00013699,2]
[420880131,1776695442975,-1000.0,0.00013699,2]
[420880132,1776695442984,-172.0,0.00013723,2]
[420880133,1776695442994,-648.0,0.00013723,2]
[420880134,1776695443004,-648.0,0.00013723,2]
[420880135,1776695443014,-648.0,0.00013723,2]
[420880136,1776695443023,-648.0,0.00013723,2]
[420880137,1776695443033,-340.0,0.00013723,2]
[420880138,1776695443043,-166.0,0.00013723,2]
[420880139,1776695443053,-648.0,0.00013723,2]
[420880140,1776695443062,-340.0,0.00013723,2]
[420880141,1776695443072,-648.0,0.00013723,2]
[420880142,1776695443082,-166.0,0.00013723,2]
[420880143,1776695443092,-340.0,0.00013723,2]
[420880144,1776695443101,-648.0,0.00013723,2]
[420880145,1776695443111,-166.0,0.00013723,2]
[420880146,1776695443120,-340.0,0.00013723,2]
[420880147,1776695443131,-648.0,0.00013723,2]
[420880148,1776695443140,-340.0,0.00013723,2]
[420880149,1776695443150,-648.0,0.00013723,2]
[420880150,1776695443160,-340.0,0.00013723,2]
[420880151,1776695443170,-648.0,0.00013723,2]
[420880152,1776695443179,-367.55222082,0.00013723,2]
[420880153,1776695443189,-648.0,0.00013723,2]
[420880154,1776695443199,-648.0,0.00013723,2]
[420880155,1776695443209,-648.0,0.00013723,2]
[420880156,1776695443219,-648.0,0.00013723,2]
[420880157,1776695443230,-648.0,0.00013723,2]
[420880158,1776695443240,-189.34040862,0.00013723,2]
[420880159,1776695443250,-164.0,0.00013723,2]
[420880160,1776695443261,-192.3509192,0.00013723,2]
[420880161,1776695443271,-455.701244,0.00013727,2]
[420880162,1776695443281,-640.12772815,0.00013737,2]
[420880163,1776695443291,-2230.315306,0.00013737,2]
[420880164,1776695443300,-773.2413689,0.00013739,2]
[420880165,1776695443310,-151.0,0.00013755,2]
[420880166,1776695443320,-927.38192032,0.00013775,2]
[420880167,1776695443330,-150.0,0.00013797,2]
[420880168,1776695443340,-250.0,0.00013797,2]
[420880169,1776695443350,-500.0,0.00013813,2]
[420880170,1776695443360,-1000.0,0.00013821,2]
[420880171,1776695443370,-633.4402,0.00013972,2]
[420880172,1776695443380,-500.0,0.00013972,2]
[420880173,1776695443390,-500.0,0.00013972,2]
[420880174,1776695443400,-1223.87,0.00013972,2]
[420880175,1776695443410,-1066.99,0.00013972,2]
[420880176,1776695443420,-900.7,0.00013972,2]
[420880177,1776695443429,-1048.73,0.00013972,2]
[420880178,1776695443439,-1258.48,0.00013972,2]
[420880179,1776695443449,-166.06779858,0.00013972,2]
[420880180,1776695443459,-1196.36,0.00013972,2]
[420880181,1776695443468,-1046.25,0.00013972,2]
[420880182,1776695443478,-500.0,0.00013972,2]
[420880183,1776695443488,-500.0,0.00013972,2]
[420880184,1776695443498,-500.0,0.00013972,2]
[420880185,1776695443509,-500.0,0.00013972,2]
[420880186,1776695443519,-500.0,0.00013972,2]
[420880187,1776695443529,-500.0,0.00013972,2]
[420880188,1776695443539,-1385.44,0.00013972,2]
[420880189,1776695443549,-500.0,0.00013972,2]
[420880190,1776695443559,-500.0,0.00013972,2]
[420880191,1776695443569,-500.0,0.00013972,2]
[420880192,1776695443579,-856.56,0.00013972,2]
[420880193,1776695443589,-500.0,0.00013972,2]
[420880194,1776695443599,-700.91,0.00013972,2]
[420880195,1776695443610,-500.0,0.00013972,2]
[420880196,1776695443620,-500.0,0.00013972,2]
[420880197,1776695443630,-226.11571706,0.00013972,2]
[420880198,1776695443640,-500.0,0.00013972,2]
[420880199,1776695443650,-854.27,0.00013972,2]
[420880200,1776695443660,-792.68,0.00013972,2]
[420880201,1776695443670,-500.0,0.00013972,2]
[420880202,1776695443680,-500.0,0.00013972,2]
[420880203,1776695443689,-735.94,0.00013972,2]
[420880204,1776695443699,-848.1629485,0.00013972,2]
[420880205,1776695443709,-500.0,0.00013972,2]
[420880206,1776695443720,-500.0,0.00013972,2]
[420880207,1776695443731,-500.0,0.00013972,2]
[420880208,1776695443741,-500.0,0.00013972,2]
[420880209,1776695443944,-500.0,0.00013972,2]
[420880210,1776695443961,-500.0,0.00013972,2]
[420880211,1776695443970,-1106.07,0.00013972,2]
[420880212,1776695443979,-500.0,0.00013972,2]
[420880213,1776695443989,-2226.6,0.00013972,2]
[420880214,1776695443999,-500.0,0.00013972,2]
[420880215,1776695444009,-500.0,0.00013972,2]
[420880216,1776695444018,-500.0,0.00013972,2]
[420880217,1776695444028,-1175.18,0.00013972,2]
[420880218,1776695444037,-500.0,0.00013972,2]
[420880219,1776695444047,-760.55,0.00013972,2]
[420880220,1776695444056,-500.0,0.00013972,2]
[420880221,1776695444065,-500.0,0.00013972,2]
[420880222,1776695444075,-654.08,0.00013972,2]
[420880223,1776695444084,-500.0,0.00013972,2]
[420880224,1776695444093,-917.93,0.00013972,2]
[420880225,1776695444103,-500.0,0.00013972,2]
[420880226,1776695444112,-500.0,0.00013972,2]
[420880227,1776695444123,-500.0,0.00013972,2]
[420880228,1776695444132,-500.0,0.00013972,2]
[420880229,1776695444141,-713.9,0.00013972,2]
[420880230,1776695444151,-500.0,0.00013972,2]
[420880231,1776695444160,-500.0,0.00013972,2]
[420880232,1776695444170,-500.0,0.00013972,2]
[420880233,1776695444180,-556.02105357,0.00013972,2]
[420880234,1776695444189,-500.0,0.00013972,2]
[420880235,1776695444198,-500.0,0.00013972,2]
[420880236,1776695444208,-500.0,0.00013972,2]
[420880237,1776695444217,-3819.94,0.00013972,2]
[420880238,1776695444227,-500.0,0.00013972,2]
[420880239,1776695444235,-500.0,0.00013972,2]
[420880240,1776695444244,-500.0,0.00013972,2]
[420880241,1776695444254,-510.22,0.00013972,2]
[420880242,1776695444263,-796.38,0.00013972,2]
[420880243,1776695444272,-500.0,0.00013972,2]
[420880244,1776695444281,-500.0,0.00013972,2]
[420880245,1776695444290,-2062.46,0.00013972,2]
[420880246,1776695444300,-594.89,0.00013972,2]
[420880247,1776695444309,-500.0,0.00013972,2]
[420880248,1776695444318,-672.12,0.00013972,2]
[420880249,1776695444328,-500.0,0.00013972,2]
[420880250,1776695444338,-500.0,0.00013972,2]
[420880251,1776695444347,-747.53,0.00013972,2]
[420880252,1776695444356,-500.0,0.00013972,2]
[420880253,1776695444366,-500.0,0.00013972,2]
[420880254,1776695444375,-500.0,0.00013972,2]
[420880255,1776695444384,-500.0,0.00013972,2]
[420880256,1776695444394,-555.75,0.00013972,2]
[420880257,1776695444403,-500.0,0.00013972,2]
[420880258,1776695444412,-500.0,0.00013972,2]
[420880259,1776695444422,-500.0,0.00013972,2]
[420880260,1776695444431,-500.0,0.00013972,2]
[420880261,1776695444441,-500.0,0.00013972,2]
[420880262,1776695444450,-1039.0,0.00013972,2]
[420880263,1776695444460,-500.0,0.00013972,2]
[420880264,1776695444470,-500.0,0.00013972,2]
[420880265,1776695444480,-571.12,0.00013972,2]
[420880266,1776695444489,-500.0,0.00013972,2]
[420880267,1776695444499,-500.0,0.00013972,2]
[420880268,1776695444508,-1033.71,0.00013972,2]
[420880269,1776695444518,-500.0,0.00013972,2]
[420880270,1776695444528,-695.56,0.00013972,2]
[420880271,1776695444537,-1208.3,0.00013972,2]
[420880272,1776695444547,-1907.56,0.00013972,2]
[420880273,1776695444556,-619.26,0.00013972,2]
[420880274,1776695444567,-500.0,0.00013972,2]
[420880275,1776695444577,-528.7,0.00013972,2]
[420880276,1776695444587,-639.59680506,0.00013972,2]
[420880277,1776695444596,-569.69,0.00013972,2]
[420880278,1776695444606,-785.98,0.00013972,2]
[420880279,1776695444616,-500.0,0.00013972,2]
[420880280,1776695444626,-1860.81,0.00013972,2]
[420880281,1776695444636,-557.04,0.00013972,2]
[420880282,1776695444645,-500.0,0.00013972,2]
[420880283,1776695444655,-590.52,0.00013972,2]
[420880284,1776695444665,-769.48,0.00013972,2]
[420880285,1776695444675,-650.53,0.00013972,2]
[420880286,1776695444685,-588.58,0.00013972,2]
[420880287,1776695444694,-613.38,0.00013972,2]
[420880288,1776695444704,-871.95,0.00013972,2]
[420880289,1776695444714,-2614.19,0.00013972,2]
[420880290,1776695444724,-301.6575501,0.00013972,2]
[420880291,1776695444734,-500.0,0.00013972,2]
[420880292,1776695444744,-1206.58,0.00013972,2]
[420880293,1776695444753,-500.0,0.00013972,2]
[420880294,1776695444764,-889.65,0.00013972,2]
[420880295,1776695444773,-997.28,0.00013972,2]
[420880296,1776695444783,-1460.82,0.00013972,2]
[420880297,1776695444793,-500.0,0.00013972,2]
[420880298,1776695444803,-500.0,0.00013972,2]
[420880299,1776695444812,-500.0,0.00013972,2]
[420880300,1776695444822,-3169.85,0.00013972,2]
[420880301,1776695444832,-1051.53,0.00013972,2]
[420880302,1776695444841,-1722.67,0.00013972,2]
[420880303,1776695444851,-500.0,0.00013972,2]
[420880304,1776695444860,-12639.67,0.00013972,2]
[420880305,1776695444870,-500.0,0.00013972,2]
[420880306,1776695444880,-2381.19,0.00013972,2]
[420880307,1776695444890,-2027.58,0.00013972,2]
[420880308,1776695444899,-11841.55,0.00013972,2]
[420880309,1776695444908,-670.87,0.00013972,2]
[420880310,1776695444918,-19919.13,0.00013972,2]
[420880311,1776695444928,-822.79,0.00013972,2]
[420880312,1776695444939,-1043.37,0.00013972,2]
[420880313,1776695444949,-1646.19,0.00013972,2]
[420880314,1776695444959,-3484.44,0.00013972,2]
[420880315,1776695444968,-567.75256997,0.00013972,2]
[420880316,1776695444978,-1003.46,0.00013972,2]
[420880317,1776695444987,-8857.83,0.00013972,2]
[420880318,1776695444997,-500.0,0.00013972,2]
[420880319,1776695445006,-500.0,0.00013972,2]
[420880320,1776695445015,-849.39,0.00013972,2]
[420880321,1776695445026,-773.3,0.00013972,2]
[420880322,1776695445035,-500.0,0.00013972,2]
[420880323,1776695445045,-500.0,0.00013972,2]
[420880324,1776695445054,-500.0,0.00013972,2]
[420880325,1776695445063,-735.91,0.00013972,2]
[420880326,1776695445072,-4157.69,0.00013972,2]
[420880327,1776695445082,-1299.4,0.00013972,2]
[420880328,1776695445091,-2007.86,0.00013972,2]
[420880329,1776695445100,-3072.31,0.00013972,2]
[420880330,1776695445109,-7518.44,0.00013972,2]
[420880331,1776695445119,-1267.75,0.00013972,2]
[420880332,1776695445129,-13568.5,0.00013972,2]
[420880333,1776695445138,-6882.55,0.00013972,2]
[420880334,1776695445148,-509.96300905,0.00013972,2]
[420880335,1776695445160,-839.21,0.00013972,2]
[420880336,1776695445170,-500.0,0.00013972,2]
[420880337,1776695445182,-500.0,0.00013972,2]
[420880338,1776695445193,-1162.54,0.00013972,2]
[420880339,1776695445203,-538.95,0.00013972,2]
[420880340,1776695445213,-1063.66,0.00013972,2]
[420880341,1776695445223,-500.0,0.00013972,2]
[420880342,1776695445236,-3515.88,0.00013972,2]
[420880343,1776695445245,-1436.78,0.00013972,2]
[420880344,1776695445255,-500.0,0.00013972,2]
[420880345,1776695445265,-1807.16,0.00013972,2]
[420880346,1776695445275,-500.0,0.00013972,2]
[420880347,1776695445285,-541.04,0.00013972,2]
[420880348,1776695445295,-500.0,0.00013972,2]
[420880349,1776695445304,-5861.04,0.00013972,2]
[420880350,1776695445313,-1154.43,0.00013972,2]
[420880351,1776695445322,-500.0,0.00013972,2]
[420880352,1776695445332,-708.97,0.00013972,2]
[420880353,1776695445342,-633.86223795,0.00013972,2]
[420880354,1776695445351,-500.0,0.00013972,2]
[420880355,1776695445361,-3770.81,0.00013972,2]
[420880356,1776695445371,-500.0,0.00013972,2]
[420880357,1776695445380,-1156.36,0.00013972,2]
[420880358,1776695445390,-604.25,0.00013972,2]
[420880359,1776695445399,-656.56,0.00013972,2]
[420880360,1776695445410,-5774.5,0.00013972,2]
[420880361,1776695445419,-2828.0,0.00013972,2]
[420880362,1776695445429,-1203.45,0.00013972,2]
[420880363,1776695445440,-500.0,0.00013972,2]
[420880364,1776695445449,-2359.42,0.00013972,2]
[420880365,1776695445458,-5277.83,0.00013972,2]
[420880366,1776695445468,-500.0,0.00013972,2]
[420880367,1776695445477,-500.0,0.00013972,2]
[420880368,1776695445487,-194.83389846,0.00013972,2]
[420880369,1776695445497,-500.0,0.00013972,2]
[420880370,1776695445507,-3310.23,0.00013972,2]
[420880371,1776695445516,-500.0,0.00013972,2]
[420880372,1776695445526,-5125.88,0.00013972,2]
[420880373,1776695445537,-2852.73,0.00013972,2]
[420880374,1776695445546,-1372.85,0.00013972,2]
[420880375,1776695445556,-10114.77,0.00013972,2]
[420880376,1776695445566,-500.0,0.00013972,2]
[420880377,1776695445576,-704.5,0.00013972,2]
[420880378,1776695445585,-500.0,0.00013972,2]
[420880379,1776695445594,-845.6,0.00013972,2]
[420880380,1776695445604,-500.0,0.00013972,2]
[420880381,1776695445613,-8743.2,0.00013972,2]
[420880382,1776695445623,-931.57,0.00013972,2]
[420880383,1776695445634,-500.0,0.00013972,2]
[420880384,1776695445644,-652.74,0.00013972,2]
[420880385,1776695445653,-500.0,0.00013972,2]
[420880386,1776695445663,-500.0,0.00013972,2]
[420880387,1776695445673,-523.02,0.00013972,2]
[420880388,1776695445685,-500.0,0.00013972,2]
[420880389,1776695445695,-842.39,0.00013972,2]
[420880390,1776695445705,-500.0,0.00013972,2]
[420880391,1776695445715,-500.0,0.00013972,2]
[420880392,1776695445725,-1429.43,0.00013972,2]
[420880393,1776695445735,-500.0,0.00013972,2]
[420880394,1776695445745,-232.95708456,0.00013972,2]
[420880395,1776695445755,-4288.03,0.00013972,2]
[420880396,1776695445765,-2258.97,0.00013972,2]
[420880397,1776695445775,-1146.66,0.00013972,2]
[420880398,1776695445785,-500.0,0.00013972,2]
[420880400,1776695445794,-4389.25,0.00013972,2]
[420880402,1776695445804,-7613.17,0.00013972,2]
[420880403,1776695445813,-4172.87,0.00013972,2]
[420880404,1776695445823,-612.91,0.00013972,2]
[420880405,1776695445832,-1023.06,0.00013972,2]
[420880406,1776695445842,-500.0,0.00013972,2]
[420880407,1776695445852,-500.0,0.00013972,2]
[420880408,1776695445861,-500.0,0.00013972,2]
[420880409,1776695445871,-1013.55,0.00013972,2]
[420880410,1776695445881,-5846.08,0.00013972,2]
[420880411,1776695445890,-280.49514976,0.00013972,2]
[420880412,1776695445900,-3991.94,0.00013972,2]
[420880413,1776695445910,-500.0,0.00013972,2]
[420880414,1776695445920,-1418.61,0.00013972,2]
[420880415,1776695445929,-1958.74,0.00013972,2]
[420880416,1776695445941,-10616.86,0.00013972,2]
[420880417,1776695445950,-519.09,0.00013972,2]
[420880418,1776695445959,-9111.11,0.00013972,2]
[420880419,1776695445968,-500.0,0.00013972,2]
[420880420,1776695445977,-500.0,0.00013972,2]
[420880421,1776695445986,-38262.62,0.00013972,2]
[420880422,1776695445996,-500.12456388,0.00013973,2]
[420880423,1776695446006,-500.41943317,0.00013973,2]
[420880424,1776695446015,-500.34440688,0.00013973,2]
[420880425,1776695446026,-500.0,0.00013973,2]
[420880426,1776695446035,-500.53365166,0.00013973,2]
[420880427,1776695446045,-500.0,0.00013973,2]
[420880428,1776695446054,-500.0,0.00013973,2]
[420880429,1776695446063,-500.0,0.00013973,2]
[420880430,1776695446073,-150.17682046,0.00013973,2]
[420880431,1776695446082,-500.0,0.00013973,2]
[420880432,1776695446091,-150.14158072,0.00013973,2]
[420880433,1776695446100,-1190.0,0.00013973,2]
[420880434,1776695446109,-395.63265924,0.00014,2]
[420880435,1776695446119,-420.0,0.00014072,2]
[420880436,1776695446128,-500.0,0.00014087,2]
[420880438,1776695446138,-500.0,0.00014098,2]
[420880440,1776695446147,-500.0,0.00014098,2]
[420880441,1776695446156,-500.0,0.00014098,2]
[420880443,1776695446165,-500.0,0.00014098,2]
[420880444,1776695446174,-500.0,0.00014098,2]
[420880446,1776695446185,-629.63666258,0.00014098,2]
[420880448,1776695446195,-1000.0,0.00014221,2]
[420880449,1776695446204,-557.79527737,0.00014221,2]
[420880451,1776695446213,-1000.0,0.00014221,2]
[420880453,1776695446222,-1000.0,0.00014221,2]
[420880457,1776695446275,-1000.0,0.00014221,2]
[420880458,1776695446284,-1908.279365,0.00014242,2]
[420880459,1776695446294,-151.5,0.00014246,2]
[420880460,1776695446303,-633.4402,0.00014246,2]
[420880461,1776695446312,-500.0,0.00014246,2]
[420880462,1776695446321,-500.0,0.00014246,2]
[420880463,1776695446330,-1223.87,0.00014246,2]
[420880464,1776695446339,-1066.99,0.00014246,2]
[420880465,1776695446349,-900.7,0.00014246,2]
[420880466,1776695446358,-1048.73,0.00014246,2]
[420880467,1776695446368,-1258.48,0.00014246,2]
[420880468,1776695446377,-1196.36,0.00014246,2]
[420880469,1776695446387,-1046.25,0.00014246,2]
[420880470,1776695446395,-500.0,0.00014246,2]
[420880471,1776695446405,-500.0,0.00014246,2]
[420880472,1776695446414,-500.0,0.00014246,2]
[420880473,1776695446424,-500.0,0.00014246,2]
[420880475,1776695446433,-500.0,0.00014246,2]
[420880477,1776695446442,-500.0,0.00014246,2]
[420880479,1776695446452,-1385.44,0.00014246,2]
[420880481,1776695446462,-500.0,0.00014246,2]
[420880483,1776695446472,-500.0,0.00014246,2]
[420880485,1776695446481,-500.0,0.00014246,2]
[420880487,1776695446490,-856.56,0.00014246,2]
[420880489,1776695446500,-500.0,0.00014246,2]
[420880491,1776695446509,-700.91,0.00014246,2]
[420880493,1776695446518,-154.85838864,0.00014246,2]
[420880495,1776695446527,-500.0,0.00014246,2]
[420880497,1776695446536,-500.0,0.00014246,2]
[420880499,1776695446546,-854.27,0.00014246,2]
[420880500,1776695446556,-792.68,0.00014246,2]
[420880502,1776695446565,-500.04438916,0.00014246,2]
[420880504,1776695446574,-500.0,0.00014246,2]
[420880506,1776695446584,-735.94,0.00014246,2]
[420880508,1776695446593,-500.0,0.00014246,2]
[420880510,1776695446602,-500.0,0.00014246,2]
[420880512,1776695446612,-500.0,0.00014246,2]
[420880514,1776695446621,-500.0,0.00014246,2]
[420880516,1776695446630,-500.0,0.00014246,2]
[420880518,1776695446639,-500.0,0.00014246,2]
[420880520,1776695446649,-1106.07,0.00014246,2]
[420880522,1776695446659,-500.0,0.00014246,2]
[420880524,1776695446668,-2226.6,0.00014246,2]
[420880527,1776695446678,-500.0,0.00014246,2]
[420880529,1776695446688,-500.0,0.00014246,2]
[420880530,1776695446697,-500.0,0.00014246,2]
[420880532,1776695446707,-1175.18,0.00014246,2]
[420880534,1776695446716,-500.0,0.00014246,2]
[420880536,1776695446726,-760.55,0.00014246,2]
[420880538,1776695446735,-500.0,0.00014246,2]
[420880540,1776695446744,-500.0,0.00014246,2]
[420880541,1776695446754,-654.08,0.00014246,2]
[420880542,1776695446763,-500.0,0.00014246,2]
[420880543,1776695446772,-917.93,0.00014246,2]
[420880545,1776695446781,-500.0,0.00014246,2]
[420880547,1776695446791,-500.0,0.00014246,2]
[420880548,1776695446800,-500.0,0.00014246,2]
[420880550,1776695446809,-500.0,0.00014246,2]
[420880552,1776695446819,-713.9,0.00014246,2]
[420880554,1776695446828,-500.0,0.00014246,2]
[420880556,1776695446837,-500.0,0.00014246,2]
[420880558,1776695446846,-500.0,0.00014246,2]
[420880560,1776695446855,-500.0,0.00014246,2]
[420880561,1776695446865,-500.0,0.00014246,2]
[420880562,1776695446874,-500.0,0.00014246,2]
[420880563,1776695446884,-3819.94,0.00014246,2]
[420880564,1776695446893,-500.0,0.00014246,2]
[420880565,1776695446902,-500.0,0.00014246,2]
[420880566,1776695446911,-500.0,0.00014246,2]
[420880567,1776695446921,-510.22,0.00014246,2]
[420880568,1776695446932,-796.38,0.00014246,2]
[420880569,1776695446941,-500.0,0.00014246,2]
[420880570,1776695446950,-500.0,0.00014246,2]
[420880571,1776695446959,-2062.46,0.00014246,2]
[420880572,1776695446968,-594.89,0.00014246,2]
[420880573,1776695446978,-500.0,0.00014246,2]
[420880574,1776695446987,-672.12,0.00014246,2]
[420880575,1776695446997,-500.0,0.00014246,2]
[420880576,1776695447006,-500.0,0.00014246,2]
[420880577,1776695447016,-747.53,0.00014246,2]
[420880578,1776695447025,-500.0,0.00014246,2]
[420880579,1776695447035,-500.0,0.00014246,2]
[420880580,1776695447044,-470.54759212,0.00014246,2]
[420880581,1776695447053,-500.0,0.00014246,2]
[420880582,1776695447063,-555.75,0.00014246,2]
[420880583,1776695447074,-500.0,0.00014246,2]
[420880584,1776695447083,-500.0,0.00014246,2]
[420880585,1776695447092,-500.0,0.00014246,2]
[420880586,1776695447101,-500.0,0.00014246,2]
[420880587,1776695447110,-500.0,0.00014246,2]
[420880588,1776695447119,-1039.0,0.00014246,2]
[420880589,1776695447128,-525.18788786,0.00014246,2]
[420880590,1776695447138,-500.0,0.00014246,2]
[420880591,1776695447147,-571.12,0.00014246,2]
[420880592,1776695447156,-500.0,0.00014246,2]
[420880593,1776695447166,-500.0,0.00014246,2]
[420880594,1776695447175,-1033.71,0.00014246,2]
[420880595,1776695447186,-500.0,0.00014246,2]
[420880596,1776695447195,-695.56,0.00014246,2]
[420880597,1776695447204,-1208.3,0.00014246,2]
[420880598,1776695447213,-1907.56,0.00014246,2]
[420880599,1776695447223,-619.26,0.00014246,2]
[420880600,1776695447232,-500.0,0.00014246,2]
[420880601,1776695447242,-528.7,0.00014246,2]
[420880602,1776695447251,-569.69,0.00014246,2]
[420880603,1776695447261,-785.98,0.00014246,2]
[420880604,1776695447270,-500.0,0.00014246,2]
[420880605,1776695447281,-1860.81,0.00014246,2]
[420880606,1776695447291,-557.04,0.00014246,2]
[420880607,1776695447301,-500.0,0.00014246,2]
[420880608,1776695447310,-590.52,0.00014246,2]
[420880609,1776695447320,-769.48,0.00014246,2]
[420880610,1776695447331,-650.53,0.00014246,2]
[420880611,1776695447340,-588.58,0.00014246,2]
[420880612,1776695447349,-613.38,0.00014246,2]
[420880613,1776695447358,-871.95,0.00014246,2]
[420880614,1776695447367,-2614.19,0.00014246,2]
[420880615,1776695447377,-500.0,0.00014246,2]
[420880616,1776695447386,-1206.58,0.00014246,2]
[420880617,1776695447395,-189.50637352,0.00014246,2]
[420880618,1776695447404,-889.65,0.00014246,2]
[420880619,1776695447413,-997.28,0.00014246,2]
[420880620,1776695447422,-1460.82,0.00014246,2]
[420880621,1776695447433,-500.0,0.00014246,2]
[420880622,1776695447443,-500.0,0.00014246,2]
[420880623,1776695447452,-500.0,0.00014246,2]
[420880624,1776695447461,-3169.85,0.00014246,2]
[420880625,1776695447470,-1051.53,0.00014246,2]
[420880626,1776695447479,-1722.67,0.00014246,2]
[420880627,1776695447488,-500.0,0.00014246,2]
[420880628,1776695447498,-12639.67,0.00014246,2]
[420880629,1776695447507,-500.0,0.00014246,2]
[420880630,1776695447516,-2381.19,0.00014246,2]
[420880631,1776695447525,-2027.58,0.00014246,2]
[420880632,1776695447535,-11841.55,0.00014246,2]
[420880633,1776695447544,-670.87,0.00014246,2]
[420880634,1776695447554,-19919.13,0.00014246,2]
[420880635,1776695447563,-822.79,0.00014246,2]
[420880636,1776695447572,-1043.37,0.00014246,2]
[420880637,1776695447582,-1646.19,0.00014246,2]
[420880638,1776695447591,-3484.44,0.00014246,2]
[420880639,1776695447600,-1003.46,0.00014246,2]
[420880640,1776695447609,-8857.83,0.00014246,2]
[420880641,1776695447623,-487.4949837,0.00014246,2]
[420880642,1776695447634,-500.0,0.00014246,2]